[Event "NJSK 2021 Jeugd C"]
[Site "Almelo, Netherlands"]
[Date "2021.08.07"]
[Round "9.10"]
[White "Kumar, Prayan Sai"]
[Black "Ramdien, Steven"]
[Result "0-1"]
[TimeControl "90min + 30sec/move"]
[WhiteElo "1652"]
[BlackElo "1589"]

1. d4 {[%clk 01:30:57]} {[%emt 00:00:02]} Nf6 {[%clk 01:30:57]} {[%emt
00:00:03]} 2. c4 {[%clk 01:31:15]} {[%emt 00:00:12]} e6 {[%clk 01:31:24]}
{[%emt 00:00:03]} 3. Nf3 {[%clk 01:31:22]} {[%emt 00:00:24]} d5 {[%clk
01:31:29]} {[%emt 00:00:24]} 4. Bg5 {[%clk 01:30:41]} {[%emt 00:01:11]} Be7
{[%clk 01:31:45]} {[%emt 00:00:13]} 5. cxd5 {[%clk 01:29:34]} {[%emt 00:01:38]}
exd5 {[%clk 01:32:08]} {[%emt 00:00:07]} 6. Nc3 {[%clk 01:29:10]} {[%emt
00:00:54]} O-O {[%clk 01:32:19]} {[%emt 00:00:18]} 7. e3 {[%clk 01:29:08]}
{[%emt 00:00:33]} Bf5 {[%clk 01:32:31]} {[%emt 00:00:18]} 8. Bd3 {[%clk
01:28:19]} {[%emt 00:01:19]} Bxd3 {[%clk 01:32:52]} {[%emt 00:00:09]} 9. Qxd3
{[%clk 01:28:40]} {[%emt 00:00:10]} h6 {[%clk 01:33:16]} {[%emt 00:00:06]} 10.
Bh4 {[%clk 01:28:54]} {[%emt 00:00:15]} c6 {[%clk 01:33:10]} {[%emt 00:00:36]}
11. O-O {[%clk 01:29:09]} {[%emt 00:00:14]} Nbd7 {[%clk 01:32:22]} {[%emt
00:01:18]} 12. Rab1 {[%clk 01:26:19]} {[%emt 00:03:21]} Re8 {[%clk 01:32:18]}
{[%emt 00:00:34]} 13. Rfc1 {[%clk 01:22:16]} {[%emt 00:04:33]} Nf8 {[%clk
01:30:46]} {[%emt 00:02:01]} 14. h3 {[%clk 01:18:48]} {[%emt 00:03:59]} Ng6
{[%clk 01:30:17]} {[%emt 00:00:58]} 15. Bg3 {[%clk 01:19:07]} {[%emt 00:00:10]}
Bd6 {[%clk 01:30:29]} {[%emt 00:00:19]} 16. Bxd6 {[%clk 01:19:19]} {[%emt
00:00:18]} Qxd6 {[%clk 01:30:52]} {[%emt 00:00:07]} 17. b4 {[%clk 01:16:14]}
{[%emt 00:03:36]} Qd7 {[%clk 01:28:22]} {[%emt 00:02:59]} 18. b5 {[%clk
01:12:32]} {[%emt 00:04:12]} Rac8 {[%clk 01:27:33]} {[%emt 00:01:19]} 19. Na4
{[%clk 01:07:49]} {[%emt 00:05:14]} b6 {[%clk 01:26:08]} {[%emt 00:01:55]} 20.
Nc3 {[%clk 00:55:51]} {[%emt 00:12:28]} Ne4 {[%clk 01:19:19]} {[%emt 00:07:18]}
21. Nd2 {[%clk 00:52:43]} {[%emt 00:03:38]} Nxd2 {[%clk 01:18:41]} {[%emt
00:01:08]} 22. Qxd2 {[%clk 00:52:39]} {[%emt 00:00:35]} cxb5 {[%clk 01:18:54]}
{[%emt 00:00:17]} 23. Nxb5 {[%clk 00:51:47]} {[%emt 00:01:21]} Rc4 {[%clk
01:16:28]} {[%emt 00:02:48]} 24. Rxc4 {[%clk 00:47:15]} {[%emt 00:05:11]} dxc4
{[%clk 01:16:43]} {[%emt 00:00:15]} 25. Qc3 {[%clk 00:46:59]} {[%emt 00:00:45]}
Rc8 {[%clk 01:16:51]} {[%emt 00:00:22]} 26. Na3 {[%clk 00:47:14]} {[%emt
00:00:15]} Ne7 {[%clk 01:14:30]} {[%emt 00:02:51]} 27. e4 {[%clk 00:42:02]}
{[%emt 00:05:42]} Qe6 {[%clk 01:13:10]} {[%emt 00:01:50]} 28. f3 {[%clk
00:39:20]} {[%emt 00:03:12]} a6 {[%clk 01:13:01]} {[%emt 00:00:39]} 29. Rd1
{[%clk 00:35:13]} {[%emt 00:04:38]} Qd6 {[%clk 01:08:33]} {[%emt 00:04:57]} 30.
d5 {[%clk 00:34:24]} {[%emt 00:01:19]} f6 {[%clk 01:06:04]} {[%emt 00:02:58]}
31. Nc2 {[%clk 00:27:21]} {[%emt 00:07:34]} b5 {[%clk 01:05:59]} {[%emt
00:00:36]} 32. a3 {[%clk 00:26:57]} {[%emt 00:00:54]} Nc6 {[%clk 01:04:34]}
{[%emt 00:01:54]} 33. Ne3 {[%clk 00:20:24]} {[%emt 00:07:03]} Ne7 {[%clk
01:03:27]} {[%emt 00:01:38]} 34. Qb4 {[%clk 00:11:11]} {[%emt 00:09:42]} Rd8
{[%clk 01:01:26]} {[%emt 00:02:32]} 35. Nc2 {[%clk 00:09:13]} {[%emt 00:02:27]}
Nc8 {[%clk 01:00:49]} {[%emt 00:01:07]} 36. Qxd6 {[%clk 00:04:28]} {[%emt
00:05:15]} Nxd6 {[%clk 01:01:18]} {[%emt 00:00:01]} 37. Nb4 {[%clk 00:04:31]}
{[%emt 00:00:27]} a5 {[%clk 01:01:23]} {[%emt 00:00:25]} 38. Nc6 {[%clk
00:04:54]} {[%emt 00:00:07]} Ra8 {[%clk 01:01:44]} {[%emt 00:00:09]} 39. f4
{[%clk 00:04:33]} {[%emt 00:00:50]} Kf7 {[%clk 01:01:19]} {[%emt 00:00:55]} 40.
e5 {[%clk 00:04:43]} {[%emt 00:00:20]} Nb7 {[%clk 01:01:09]} {[%emt 00:00:40]}
41. e6+ {[%clk 00:04:20]} {[%emt 00:00:54]} Ke8 {[%clk 01:01:17]} {[%emt
00:00:22]} 42. d6 {[%clk 00:04:39]} {[%emt 00:00:12]} Nd8 {[%clk 01:01:28]}
{[%emt 00:00:18]} 43. Nxd8 {[%clk 00:03:56]} {[%emt 00:01:13]} Kxd8 {[%clk
01:01:54]} {[%emt 00:00:05]} 44. Rb1 {[%clk 00:03:39]} {[%emt 00:00:46]} Rb8
{[%clk 01:02:05]} {[%emt 00:00:19]} 45. Kf2 {[%clk 00:03:08]} {[%emt 00:01:02]}
b4 {[%clk 01:02:08]} {[%emt 00:00:27]} 46. Ke2 {[%clk 00:03:24]} {[%emt
00:00:13]} b3 {[%clk 01:02:20]} {[%emt 00:00:18]} 47. Kd2 {[%clk 00:03:37]}
{[%emt 00:00:17]} Rb6 {[%clk 01:02:28]} {[%emt 00:00:22]} 48. Kc3 {[%clk
00:03:57]} {[%emt 00:00:10]} Rxd6 {[%clk 01:02:42]} {[%emt 00:00:16]} 49. Kxc4
{[%clk 00:04:24]} {[%emt 00:00:03]} a4 {[%clk 01:02:56]} {[%emt 00:00:16]} 50.
Kb4 {[%clk 00:03:18]} {[%emt 00:01:35]} Rd4+ {[%clk 01:03:20]} {[%emt
00:00:07]} 51. Kc5 {[%clk 00:03:15]} {[%emt 00:00:33]} Rxf4 {[%clk 01:03:42]}
{[%emt 00:00:08]} 52. Kd5 {[%clk 00:02:53]} {[%emt 00:00:53]} Ke7 {[%clk
01:03:36]} {[%emt 00:00:35]} 53. Rc1 {[%clk 00:03:18]} {[%emt 00:00:05]} Rf5+
{[%clk 01:03:54]} {[%emt 00:00:12]} 54. Ke4 {[%clk 00:03:29]} {[%emt 00:00:18]}
Re5+ {[%clk 01:04:19]} {[%emt 00:00:24]} 0-1

[Event "NJSK 2021 Jeugd C"]
[Site "Almelo, Netherlands"]
[Date "2021.08.07"]
[Round "9.11"]
[White "Sazonov, Fedor"]
[Black "Pancharajah, Abisan"]
[Result "0-1"]
[TimeControl "90min + 30sec/move"]
[WhiteElo "1650"]
[BlackElo "1650"]

1. d4 {[%clk 01:30:59]} {[%emt 00:00:01]} Nf6 {[%clk 01:30:50]} {[%emt
00:00:09]} 2. c4 {[%clk 01:31:20]} {[%emt 00:00:11]} g6 {[%clk 01:31:04]}
{[%emt 00:00:15]} 3. Nf3 {[%clk 01:31:16]} {[%emt 00:00:34]} Bg7 {[%clk
01:31:15]} {[%emt 00:00:18]} 4. Nc3 {[%clk 01:31:38]} {[%emt 00:00:09]} O-O
{[%clk 01:31:31]} {[%emt 00:00:12]} 5. Bg5 {[%clk 01:31:55]} {[%emt 00:00:15]}
d6 {[%clk 01:30:12]} {[%emt 00:01:49]} 6. e3 {[%clk 01:29:58]} {[%emt
00:02:27]} Nbd7 {[%emt 00:01:35]} 7. Be2 {[%clk 01:29:46]} {[%emt 00:00:39]} b6
{[%clk 01:28:58]} {[%emt 00:00:42]} 8. O-O {[%clk 01:26:17]} {[%emt 00:03:59]}
Bb7 {[%clk 01:28:57]} {[%emt 00:00:30]} 9. d5 {[%clk 01:24:57]} {[%emt
00:01:51]} c6 {[%clk 01:27:41]} {[%emt 00:01:46]} 10. e4 {[%clk 01:21:08]}
{[%emt 00:04:18]} Nc5 {[%clk 01:27:24]} {[%emt 00:00:46]} 11. Qc2 {[%clk
01:20:56]} {[%emt 00:00:44]} Rc8 {[%clk 01:23:14]} {[%emt 00:04:40]} 12. Rac1
{[%clk 01:15:10]} {[%emt 00:06:16]} a5 {[%clk 01:21:03]} {[%emt 00:02:41]} 13.
Rfe1 {[%clk 01:13:52]} {[%emt 00:01:47]} h6 {[%clk 01:20:19]} {[%emt 00:01:14]}
14. Bh4 {[%clk 01:10:25]} {[%emt 00:03:56]} g5 {[%clk 01:17:46]} {[%emt
00:03:05]} 15. Bg3 {[%clk 01:09:52]} {[%emt 00:01:02]} b5 {[%clk 01:16:45]}
{[%emt 00:01:31]} 16. dxc6 {[%clk 00:53:36]} {[%emt 00:16:47]} Bxc6 {[%clk
01:16:44]} {[%emt 00:00:30]} 17. cxb5 {[%clk 00:52:27]} {[%emt 00:01:40]} Bxe4
{[%clk 01:14:14]} {[%emt 00:03:00]} 18. Nxe4 {[%clk 00:49:12]} {[%emt
00:03:46]} Nfxe4 {[%clk 01:13:46]} {[%emt 00:00:57]} 19. Qb1 {[%clk 00:35:59]}
{[%emt 00:13:42]} f5 {[%clk 01:08:26]} {[%emt 00:05:50]} 20. h3 {[%clk
00:34:22]} {[%emt 00:02:08]} Qb6 {[%clk 01:06:57]} {[%emt 00:01:58]} 21. a4
{[%clk 00:33:00]} {[%emt 00:01:53]} Nxg3 {[%clk 01:05:55]} {[%emt 00:01:31]} 22.
Qa2+ {[%clk 00:32:51]} {[%emt 00:00:40]} Kh8 {[%clk 01:05:56]} {[%emt
00:00:28]} 23. fxg3 {[%clk 00:31:40]} {[%emt 00:01:43]} Nd3+ {[%clk 01:03:05]}
{[%emt 00:03:17]} 0-1

[Event "NJSK 2021 Jeugd C"]
[Site "Almelo, Netherlands"]
[Date "2021.08.07"]
[Round "9.12"]
[White "Ekker, Joshua"]
[Black "Lankheet, Hidde"]
[Result "1-0"]
[TimeControl "90min + 30sec/move"]
[WhiteElo "1695"]
[BlackElo "1000"]

1. e4 {[%clk 01:30:58]} {[%emt 00:00:01]} c6 {[%clk 01:30:57]} {[%emt
00:00:04]} 2. d4 {[%clk 01:31:23]} {[%emt 00:00:04]} d5 {[%clk 01:31:23]}
{[%emt 00:00:05]} 3. exd5 {[%clk 01:31:47]} {[%emt 00:00:05]} cxd5 {[%clk
01:31:49]} {[%emt 00:00:05]} 4. Bd3 {[%clk 01:32:08]} {[%emt 00:00:08]} Nc6
{[%clk 01:32:12]} {[%emt 00:00:08]} 5. c3 {[%clk 01:32:30]} {[%emt 00:00:07]}
Nf6 {[%clk 01:32:26]} {[%emt 00:00:17]} 6. Bf4 {[%clk 01:32:25]} {[%emt
00:00:34]} e6 {[%clk 01:31:59]} {[%emt 00:00:58]} 7. Nf3 {[%clk 01:30:23]}
{[%emt 00:02:30]} Qb6 {[%clk 01:32:08]} {[%emt 00:00:23]} 8. Qc2 {[%clk
01:28:34]} {[%emt 00:02:18]} Be7 {[%clk 01:32:06]} {[%emt 00:00:32]} 9. Nbd2
{[%clk 01:27:43]} {[%emt 00:01:21]} O-O {[%clk 01:30:42]} {[%emt 00:01:55]} 10.
O-O {[%clk 01:25:15]} {[%emt 00:02:57]} Bd7 {[%clk 01:29:46]} {[%emt 00:01:27]}
11. Ne5 {[%clk 01:20:58]} {[%emt 00:04:47]} Nxe5 {[%clk 01:29:47]} {[%emt
00:00:29]} 12. Bxe5 {[%clk 01:21:18]} {[%emt 00:00:09]} h6 {[%clk 01:29:44]}
{[%emt 00:00:34]} 13. Nf3 {[%clk 01:17:29]} {[%emt 00:04:18]} Rac8 {[%clk
01:27:52]} {[%emt 00:02:23]} 14. Qe2 {[%clk 01:11:48]} {[%emt 00:06:11]} Ne4
{[%clk 01:26:10]} {[%emt 00:02:12]} 15. Rab1 {[%clk 01:09:18]} {[%emt
00:03:00]} Bc6 {[%clk 01:23:34]} {[%emt 00:03:06]} 16. Nd2 {[%clk 01:04:54]}
{[%emt 00:04:53]} Nxd2 {[%clk 01:22:31]} {[%emt 00:01:34]} 17. Qxd2 {[%clk
01:05:12]} {[%emt 00:00:12]} Bb5 {[%clk 01:22:41]} {[%emt 00:00:20]} 18. Rfe1
{[%clk 01:02:28]} {[%emt 00:03:13]} Bxd3 {[%clk 01:22:28]} {[%emt 00:00:43]} 19.
Qxd3 {[%clk 01:02:40]} {[%emt 00:00:17]} Bd6 {[%clk 01:21:23]} {[%emt
00:01:36]} 20. g4 {[%clk 00:57:02]} {[%emt 00:06:07]} Bxe5 {[%clk 01:19:12]}
{[%emt 00:02:43]} 21. Rxe5 {[%clk 00:56:34]} {[%emt 00:00:56]} Qd8 {[%clk
01:17:48]} {[%emt 00:01:55]} 22. Qf3 {[%clk 00:51:32]} {[%emt 00:05:32]} f6
{[%clk 01:13:59]} {[%emt 00:04:19]} 23. Rxe6 {[%clk 00:44:33]} {[%emt
00:07:29]} Qd7 {[%clk 01:14:08]} {[%emt 00:00:22]} 24. Qe2 {[%clk 00:37:19]}
{[%emt 00:07:42]} Rfe8 {[%clk 01:13:33]} {[%emt 00:01:07]} 25. Re1 {[%clk
00:36:28]} {[%emt 00:01:20]} Kf7 {[%clk 01:13:44]} {[%emt 00:00:20]} 26. Rxe8
{[%clk 00:31:48]} {[%emt 00:05:09]} Rxe8 {[%clk 01:13:53]} {[%emt 00:00:22]} 27.
Qxe8+ {[%clk 00:31:37]} {[%emt 00:00:40]} Qxe8 {[%clk 01:14:16]} {[%emt
00:00:08]} 28. Rxe8 {[%clk 00:32:01]} {[%emt 00:00:05]} Kxe8 {[%clk 01:14:45]}
{[%emt 00:00:02]} 29. Kg2 {[%clk 00:31:38]} {[%emt 00:00:53]} Kd7 {[%clk
01:15:09]} {[%emt 00:00:06]} 30. Kf3 {[%clk 00:22:45]} {[%emt 00:09:22]} g5
{[%clk 01:14:54]} {[%emt 00:00:46]} 31. Ke3 {[%clk 00:22:39]} {[%emt 00:00:35]}
Kc6 {[%clk 01:13:29]} {[%emt 00:01:55]} 32. Kd3 {[%clk 00:20:55]} {[%emt
00:02:14]} b5 {[%clk 01:13:13]} {[%emt 00:00:47]} 33. Kc2 {[%clk 00:20:26]}
{[%emt 00:00:59]} a5 {[%clk 01:10:29]} {[%emt 00:03:14]} 34. Kb3 {[%clk
00:12:26]} {[%emt 00:08:30]} Kb6 {[%emt 00:01:44]} 35. a4 {[%clk 00:07:25]}
{[%emt 00:05:30]} Kc6 {[%clk 01:08:47]} {[%emt 00:01:00]} 36. Ka3 {[%clk
00:07:30]} {[%emt 00:00:25]} Kb6 {[%emt 00:00:07]} 37. b3 {[%clk 00:06:47]}
{[%emt 00:01:12]} Kc6 {[%clk 01:08:23]} {[%emt 00:01:18]} 38. axb5+ {[%clk
00:03:33]} {[%emt 00:03:44]} Kxb5 {[%clk 01:08:41]} {[%emt 00:00:13]} 39. h3
{[%clk 00:03:58]} {[%emt 00:00:04]} Kb6 {[%clk 01:08:38]} {[%emt 00:00:32]} 40.
Ka4 {[%clk 00:04:23]} {[%emt 00:00:05]} Ka6 {[%clk 01:09:02]} {[%emt 00:00:06]}
41. c4 {[%clk 00:03:39]} {[%emt 00:01:15]} dxc4 {[%clk 01:09:04]} {[%emt
00:00:28]} 42. bxc4 {[%clk 00:04:03]} {[%emt 00:00:05]} Kb6 {[%clk 01:09:26]}
{[%emt 00:00:08]} 43. c5+ {[%clk 00:04:21]} {[%emt 00:00:13]} Ka6 {[%clk
01:09:33]} {[%emt 00:00:23]} 44. d5 {[%clk 00:04:39]} {[%emt 00:00:11]} 1-0

[Event "NJSK 2021 Jeugd C"]
[Site "Almelo, Netherlands"]
[Date "2021.08.07"]
[Round "10.1"]
[White "De Winter, Arthur"]
[Black "Kumar, Prajit Sai"]
[Result "1-0"]
[TimeControl "90min + 30sec/move"]
[WhiteElo "2000"]
[BlackElo "1811"]

1. e4 {[%clk 00:05:05]} c6 {[%clk 00:05:06]} 2. d4 {[%clk 00:05:06]} {[%emt
00:00:02]} d5 {[%clk 00:05:08]} 3. e5 {[%clk 00:05:07]} {[%emt 00:00:02]} Bf5
{[%clk 00:05:10]} {[%emt 00:00:02]} 4. h4 {[%clk 00:05:09]} {[%emt 00:00:01]}
h5 {[%clk 00:05:12]} 5. c4 {[%clk 00:05:10]} {[%emt 00:00:02]} e6 {[%clk
00:05:14]} {[%emt 00:00:01]} 6. Nc3 {[%clk 00:05:07]} {[%emt 00:00:05]} dxc4
{[%clk 00:05:15]} {[%emt 00:00:02]} 7. Bxc4 {[%clk 00:05:09]} {[%emt 00:00:01]}
Nd7 {[%clk 00:05:17]} {[%emt 00:00:02]} 8. Nge2 {[%clk 00:04:59]} {[%emt
00:00:13]} Be7 {[%clk 00:05:17]} {[%emt 00:00:03]} 9. Ng3 {[%clk 00:04:49]}
{[%emt 00:00:13]} Bg6 {[%clk 00:05:19]} {[%emt 00:00:01]} 10. Nge4 {[%clk
00:04:44]} {[%emt 00:00:08]} Nh6 {[%clk 00:05:17]} {[%emt 00:00:04]} 11. Bxh6
{[%clk 00:04:43]} {[%emt 00:00:04]} Rxh6 {[%clk 00:05:19]} {[%emt 00:00:01]} 12.
g3 {[%clk 00:04:32]} {[%emt 00:00:15]} Nb6 {[%clk 00:05:18]} {[%emt 00:00:03]}
13. Be2 {[%clk 00:04:23]} {[%emt 00:00:13]} Qd7 {[%clk 00:04:57]} {[%emt
00:00:24]} 14. Qd2 {[%clk 00:03:53]} {[%emt 00:00:33]} Rh8 {[%clk 00:04:50]}
{[%emt 00:00:09]} 15. O-O {[%clk 00:03:47]} {[%emt 00:00:09]} O-O-O {[%clk
00:04:44]} {[%emt 00:00:09]} 16. Rfd1 {[%clk 00:03:46]} {[%emt 00:00:03]} Bf5
{[%clk 00:03:44]} {[%emt 00:01:03]} 17. a3 {[%clk 00:03:08]} {[%emt 00:00:43]}
Kb8 {[%clk 00:02:55]} {[%emt 00:00:52]} 18. b4 {[%clk 00:02:37]} {[%emt
00:00:34]} Nd5 {[%clk 00:02:20]} {[%emt 00:00:38]} 19. Bf3 {[%clk 00:02:26]}
{[%emt 00:00:14]} Nxc3 {[%clk 00:01:55]} {[%emt 00:00:28]} 20. Nxc3 {[%clk
00:02:23]} {[%emt 00:00:05]} g5 {[%clk 00:01:45]} {[%emt 00:00:14]} 21. hxg5
{[%clk 00:02:23]} {[%emt 00:00:02]} Rdg8 {[%clk 00:01:26]} {[%emt 00:00:22]} 22.
Na4 {[%clk 00:01:27]} {[%emt 00:00:59]} Bxg5 {[%clk 00:01:11]} {[%emt
00:00:18]} 23. Nc5 {[%clk 00:01:29]} {[%emt 00:00:02]} Qc8 {[%clk 00:00:37]}
{[%emt 00:00:36]} 24. Qe2 {[%clk 00:01:25]} {[%emt 00:00:08]} h4 {[%clk
00:00:17]} {[%emt 00:00:23]} 25. g4 {[%clk 00:01:25]} {[%emt 00:00:02]} Bf4
{[%clk 00:00:14]} {[%emt 00:00:06]} 26. Kh1 {[%clk 00:01:23]} {[%emt 00:00:06]}
Bg6 {[%clk 00:00:12]} {[%emt 00:00:05]} 27. b5 {[%clk 00:01:24]} {[%emt
00:00:03]} cxb5 {[%clk 00:00:08]} {[%emt 00:00:06]} 28. Qxb5 {[%clk 00:01:25]}
{[%emt 00:00:02]} 1-0

[Event "NJSK 2021 Jeugd C"]
[Site "Almelo, Netherlands"]
[Date "????.??.??"]
[Round "11.1"]
[White "Kumar, Prayan Sai"]
[Black "De Winter, Arthur"]
[Result "0-1"]
[TimeControl "90min + 30sec/move"]
[WhiteElo "1652"]
[BlackElo "2000"]

1. e4 {[%clk 00:05:05]} c5 {[%clk 00:05:04]} {[%emt 00:00:02]} 2. Nf3 {[%clk
00:05:07]} {[%emt 00:00:01]} Nc6 {[%clk 00:05:06]} {[%emt 00:00:01]} 3. Bb5
{[%clk 00:05:09]} {[%emt 00:00:01]} g6 {[%clk 00:05:06]} {[%emt 00:00:03]} 4.
Bxc6 {[%clk 00:05:11]} dxc6 {[%clk 00:05:08]} {[%emt 00:00:02]} 5. h3 {[%clk
00:05:11]} {[%emt 00:00:03]} Bg7 {[%clk 00:05:07]} {[%emt 00:00:03]} 6. d3
{[%clk 00:05:12]} {[%emt 00:00:02]} Nf6 {[%clk 00:04:51]} {[%emt 00:00:19]} 7.
a4 {[%clk 00:04:51]} {[%emt 00:00:24]} O-O {[%clk 00:04:34]} {[%emt 00:00:21]}
8. O-O {[%clk 00:04:51]} {[%emt 00:00:02]} Nd7 {[%clk 00:04:27]} {[%emt
00:00:10]} 9. Nc3 {[%clk 00:04:30]} {[%emt 00:00:24]} e5 {[%clk 00:04:28]}
{[%emt 00:00:02]} 10. Be3 {[%clk 00:04:29]} {[%emt 00:00:05]} b6 {[%clk
00:03:59]} {[%emt 00:00:31]} 11. a5 {[%clk 00:04:10]} {[%emt 00:00:22]} Rb8
{[%clk 00:04:00]} {[%emt 00:00:02]} 12. b3 {[%clk 00:03:56]} {[%emt 00:00:17]}
Re8 {[%clk 00:03:56]} {[%emt 00:00:07]} 13. Nd2 {[%clk 00:03:47]} {[%emt
00:00:12]} Nf8 {[%clk 00:03:48]} {[%emt 00:00:12]} 14. axb6 {[%clk 00:03:09]}
{[%emt 00:00:41]} axb6 {[%clk 00:03:50]} {[%emt 00:00:01]} 15. Rb1 {[%clk
00:03:04]} {[%emt 00:00:08]} Ne6 {[%clk 00:03:36]} {[%emt 00:00:16]} 16. Ne2
{[%clk 00:02:47]} {[%emt 00:00:20]} Nd4 {[%clk 00:02:55]} {[%emt 00:00:44]} 17.
f4 {[%clk 00:02:25]} {[%emt 00:00:25]} exf4 {[%clk 00:02:48]} {[%emt 00:00:10]}
18. Bxf4 {[%clk 00:02:24]} {[%emt 00:00:04]} Ra8 {[%clk 00:02:50]} {[%emt
00:00:01]} 19. Kh1 {[%clk 00:02:10]} {[%emt 00:00:17]} Be6 {[%clk 00:02:33]}
{[%emt 00:00:21]} 20. Nf3 {[%clk 00:02:02]} {[%emt 00:00:11]} Nb5 {[%clk
00:02:10]} {[%emt 00:00:26]} 21. Qd2 {[%clk 00:01:09]} {[%emt 00:00:55]} Ra2
{[%clk 00:01:59]} {[%emt 00:00:14]} 22. Bh6 {[%clk 00:01:00]} {[%emt 00:00:12]}
f6 {[%clk 00:01:55]} {[%emt 00:00:07]} 23. Bxg7 {[%clk 00:01:01]} {[%emt
00:00:02]} Kxg7 {[%clk 00:01:56]} {[%emt 00:00:02]} 24. d4 {[%clk 00:00:53]}
{[%emt 00:00:11]} cxd4 {[%clk 00:01:43]} {[%emt 00:00:17]} 25. Nexd4 {[%clk
00:00:55]} {[%emt 00:00:01]} Bf7 {[%clk 00:01:25]} {[%emt 00:00:20]} 26. Qf2
{[%clk 00:00:40]} {[%emt 00:00:18]} Nxd4 {[%clk 00:01:14]} {[%emt 00:00:15]} 27.
Nxd4 {[%clk 00:00:42]} {[%emt 00:00:01]} c5 {[%clk 00:00:59]} {[%emt 00:00:18]}
28. Nb5 {[%clk 00:00:27]} {[%emt 00:00:18]} Re5 {[%clk 00:00:34]} {[%emt
00:00:28]} 29. Rbd1 {[%clk 00:00:22]} {[%emt 00:00:08]} Qe7 {[%clk 00:00:28]}
{[%emt 00:00:09]} 30. Rd7 {[%clk 00:00:18]} {[%emt 00:00:07]} Qxd7 {[%clk
00:00:15]} {[%emt 00:00:16]} 31. Qxf6+ {[%clk 00:00:19]} {[%emt 00:00:02]} Kg8
{[%clk 00:00:16]} {[%emt 00:00:01]} 32. Qxe5 {[%clk 00:00:20]} {[%emt
00:00:03]} Qxb5 {[%clk 00:00:17]} {[%emt 00:00:02]} 33. Qe7 {[%clk 00:00:11]}
{[%emt 00:00:11]} Qxf1+ {[%clk 00:00:17]} {[%emt 00:00:02]} 0-1